bitfinex/quotes_SOLUSD_20250518
["timestamp","ask_amount","ask_price","bid_price","bid_amount"]
[1747591938660,41.01943415,170.29,170.25,43.76]
[1747591938858,41.01943415,170.27,170.25,43.76]
[1747591939536,41.01943415,170.26,170.25,43.76]
[1747591939736,41.01943415,170.26,170.2,5.87544065]
[1747591939945,41.01943415,170.25,170.2,5.87544065]
[1747591940447,41.01943415,170.26,170.2,5.87544065]
[1747591940936,5.87263159,170.29,170.2,5.87544065]
[1747591941141,41.01943415,170.26,170.2,5.87544065]
[1747591941747,41.01943415,170.24,170.17,69.76]
[1747591941933,41.01943415,170.24,170.19,225.45566986]
[1747591942133,41.01943415,170.27,170.19,225.45566986]
[1747591942554,16.22231407,170.34,170.19,240.14513457]
[1747591942555,41.01943415,170.28,170.19,240.14513457]
[1747591942858,41.01943415,170.31,170.22,18.64964886]
[1747591943041,1.5454,170.34,170.24,20.55921052]
[1747591943351,41.01943415,170.32,170.25,1.17424151]
[1747591943559,41.01943415,170.33,170.25,1.17424151]
[1747591944337,41.01943415,170.32,170.26,5.87337013]
[1747591944532,41.01943415,170.32,170.26,20.55679547]
[1747591944851,41.01943415,170.28,170.2,7.04965569]
[1747591945052,41.01943415,170.29,170.21,14.68773867]
[1747591945263,0.95091899,170.36,170.22,1.17439335]
[1747591945443,41.01943415,170.29,170.22,1.17439335]
[1747591945632,41.01943415,170.28,170.22,1.17439335]
[1747591945831,41.01943415,170.28,170.21,14.68773867]
[1747591946265,41.01943415,170.29,170.21,14.68773867]
[1747591946740,41.01943415,170.29,170.22,26.0]
[1747591947283,41.01943415,170.26,170.21,5.87509547]
[1747591947582,41.01943415,170.27,170.21,5.87509547]
[1747591948650,41.01943415,170.26,170.21,5.87509547]
[1747591949160,41.01943415,170.27,170.21,5.87509547]
[1747591949361,5.87095637,170.33,170.21,20.56283414]
[1747591949551,41.01943415,170.28,170.21,20.56283414]
[1747591949859,41.01943415,170.29,170.21,20.56283414]
[1747591950563,41.01943415,170.28,170.21,20.56283414]
[1747591950761,0.95091899,170.33,170.22,18.64964886]
[1747591950965,0.95091899,170.33,170.25,26.0]
[1747591950966,41.01943415,170.33,170.25,26.0]
[1747591951265,7.5611,170.4,170.28,26.0]
[1747591951573,41.01943415,170.38,170.29,1.17392959]
[1747591951870,7.5611,170.4,170.29,1.17392959]
[1747591952080,41.01943415,170.38,170.29,1.17392959]
[1747591952541,41.01943415,170.38,170.3,20.55196711]
[1747591952742,41.01943415,170.39,170.31,1.17386367]
[1747591952990,41.01943415,170.37,170.3,20.55196711]
[1747591953265,41.01943415,170.33,170.29,5.87223761]
[1747591954066,41.01943415,170.34,170.29,5.87223761]
[1747591954362,41.01943415,170.36,170.27,15.85616821]
[1747591954548,41.01943415,170.36,170.28,26.0]
[1747591954755,41.01943415,170.38,170.3,26.0]
[1747591955156,41.01943415,170.37,170.3,26.0]
[1747591956364,41.01943415,170.37,170.31,5.87164582]
[1747591957056,41.01943415,170.39,170.31,20.55076037]
[1747591957240,41.01943415,170.4,170.31,21.72453676]
[1747591957437,8.025,170.45,170.35,26.0]
[1747591957657,27.03163791,170.44,170.36,1.17343671]
[1747591957862,27.03163791,170.43,170.36,1.17343671]
[1747591958370,27.03163791,170.4,170.32,1.17348783]
[1747591958578,27.03163791,170.38,170.33,5.87095637]
[1747591958760,27.03163791,170.37,170.33,5.87095637]
[1747591959080,27.03163791,170.38,170.33,5.87095637]
[1747591959379,27.03163791,170.4,170.33,5.87095637]
[1747591959583,27.03163791,170.39,170.33,5.87095637]
[1747591960180,27.03163791,170.39,170.32,5.87130108]
[1747591960698,27.03163791,170.38,170.32,5.87130108]
[1747591960865,27.03163791,170.36,170.32,5.87130108]
[1747591961065,5.86785588,170.42,170.32,20.54955378]
[1747591961382,27.03163791,170.4,170.33,1.17377769]
[1747591962156,27.03163791,170.4,170.34,20.547141]
[1747591962784,27.03163791,170.41,170.34,20.547141]
[1747591962980,27.03163791,170.42,170.34,21.72078473]
[1747591963180,27.03163791,170.43,170.34,47.72078473]
[1747591963388,6.4095,170.45,170.34,47.72078473]
[1747591963689,27.03163791,170.43,170.34,47.72078473]
[1747591964378,27.03163791,170.42,170.34,47.72078473]
[1747591964570,27.03163791,170.38,170.34,5.87061171]
[1747591964976,27.03163791,170.37,170.34,5.87061171]
[1747591965177,27.03163791,170.38,170.34,5.87061171]
[1747591965386,5.86719951,170.44,170.34,7.0443863]
[1747591965587,27.03163791,170.41,170.34,7.0443863]
[1747591965774,27.03163791,170.38,170.34,5.87061171]
[1747591965973,0.95091899,170.43,170.32,26.0]
[1747591965974,27.03163791,170.37,170.32,5.87099835]
[1747591966276,27.03163791,170.34,170.29,43.18]
[1747591966482,27.03163791,170.35,170.3,5.8719906]
[1747591966667,27.03163791,170.36,170.3,5.8719906]
[1747591967077,27.03163791,170.35,170.3,5.8719906]
[1747591967585,27.03163791,170.33,170.3,5.8719906]
[1747591967790,5.86923347,170.38,170.3,5.8719906]
[1747591967970,27.03163791,170.35,170.3,5.8719906]
[1747591968166,1.5923,170.39,170.3,5.8719906]
[1747591968363,27.03163791,170.38,170.3,7.04593163]
[1747591968590,27.03163791,170.39,170.3,7.04593163]
[1747591968774,27.03163791,170.37,170.3,5.8719906]
[1747591969096,27.03163791,170.35,170.3,5.8719906]
[1747591969473,27.03163791,170.34,170.3,5.8719906]
[1747591969669,27.03163791,170.35,170.3,5.8719906]
[1747591970081,27.03163791,170.34,170.3,5.8719906]
[1747591970467,27.03163791,170.32,170.28,5.87268029]
[1747591970672,27.03163791,170.34,170.28,5.87268029]
[1747591970881,27.03163791,170.34,170.28,20.55438101]
[1747591971409,27.03163791,170.36,170.28,20.55438101]
[1747591971694,27.03163791,170.4,170.31,26.0]
[1747591971865,5.86795816,170.42,170.31,26.0]
[1747591971866,27.03163791,170.38,170.31,26.0]
[1747591972067,27.03163791,170.39,170.31,27.17386848]
[1747591972810,27.03163791,170.38,170.31,27.17386848]
[1747591973296,27.03163791,170.39,170.31,27.17386848]
[1747591973499,27.03163791,170.38,170.32,5.87130108]
[1747591974396,20.53639442,170.43,170.32,5.87130108]
[1747591974702,27.03163791,170.38,170.32,5.87130108]
[1747591975570,27.03163791,170.39,170.32,5.87130108]
[1747591975770,27.03163791,170.39,170.33,1.17377882]
[1747591976079,27.03163791,170.41,170.33,1.17377882]
[1747591976581,5.86725153,170.44,170.33,1.17377882]
[1747591976881,27.03163791,170.41,170.33,27.17377882]
[1747591977188,27.03163791,170.41,170.34,46.547141]
[1747591977391,27.03163791,170.41,170.35,1.17358475]
[1747591977702,5.86725153,170.44,170.35,1.17358475]
[1747591977904,27.03163791,170.41,170.35,1.17358475]
[1747591978696,5.86725153,170.44,170.34,46.547141]
[1747591978697,27.03163791,170.38,170.34,26.0]
[1747591979201,27.03163791,170.37,170.32,1.17375995]
[1747591979497,27.03163791,170.38,170.32,1.17375995]
[1747591979901,27.03163791,170.38,170.32,7.04506103]
[1747591980082,27.03163791,170.36,170.32,5.87130108]
[1747591980290,27.03163791,170.33,170.26,1.17392611]
[1747591980494,6.4432,170.34,170.26,5.87337013]
[1747591980690,7.39411899,170.34,170.26,5.87337013]
[1747591981005,27.03163791,170.27,170.25,219.62]
[1747591981193,27.03163791,170.26,170.22,5.87441075]
[1747591981377,27.03163791,170.25,170.22,31.87441075]
[1747591981576,7.39411899,170.34,170.19,8.06585828]
[1747591981577,27.03163791,170.23,170.19,8.06585828]
[1747591981773,27.03163791,170.21,170.19,13.94156807]
[1747591982079,18.64964886,170.33,170.19,13.94156807]
[1747591982080,27.03163791,170.25,170.19,15.11643858]
[1747591982282,27.03163791,170.26,170.19,15.11643858]
[1747591982593,12.31389496,170.34,170.22,26.0]
[1747591982797,27.03163791,170.3,170.23,1.17431139]
[1747591982979,27.03163791,170.28,170.23,27.17431139]
[1747591983177,27.03163791,170.24,170.19,5.87570979]
[1747591983404,26.0,170.33,170.19,5.87570979]
[1747591983405,27.03163791,170.23,170.19,5.87570979]
[1747591983573,27.03163791,170.26,170.19,5.87570979]
[1747591983775,12.31389496,170.34,170.23,20.56041825]
[1747591983980,27.03163791,170.31,170.24,27.17433325]
[1747591984878,12.31388775,170.34,170.24,27.17433325]
[1747591984879,27.03163791,170.3,170.24,27.17433325]
[1747591985276,6.4432,170.34,170.25,18.64964886]
[1747591985489,6.4432,170.34,170.26,1.17417664]
[1747591985801,27.03163791,170.33,170.26,1.17417664]
[1747591985997,27.03163791,170.33,170.27,20.55558817]
[1747591986200,6.4432,170.34,170.27,5.87302519]
[1747591986201,27.03163791,170.29,170.27,5.87302519]
[1747591986399,27.03163791,170.28,170.27,5.87302519]
[1747591986599,27.03163791,170.28,170.22,5.87475032]
[1747591986789,27.03163791,170.23,170.14,221.2769]
[1747591986981,27.03163791,170.2,170.14,262.16]
[1747591987186,27.03163791,170.2,170.15,1.1749729]
[1747591987405,27.03163791,170.21,170.17,26.0]
[1747591987703,27.03163791,170.26,170.18,1.17487562]
[1747591988011,27.03163791,170.24,170.19,5.87578588]
[1747591988192,27.03163791,170.28,170.19,5.87578588]
[1747591988383,27.03163791,170.24,170.19,5.87578588]
[1747591988583,27.03163791,170.25,170.19,5.87578588]
[1747591988788,1.6111,170.29,170.2,1.17465563]
[1747591989001,5.87196028,170.31,170.2,1.17465563]
[1747591989196,27.03163791,170.27,170.2,1.17465563]
[1747591989411,27.03163791,170.25,170.19,20.56525059]
[1747591989579,27.03163791,170.23,170.17,5.87647646]
[1747591989779,27.03163791,170.23,170.14,262.16]
[1747591989780,27.03163791,170.19,170.15,5.87683243]
[1747591990098,27.03163791,170.16,170.05,8.06585828]
[1747591990296,27.03163791,170.13,170.06,5.88027754]
[1747591990909,27.03163791,170.15,170.06,20.58097141]
[1747591991111,27.03163791,170.18,170.08,26.0]
[1747591991308,27.03163791,170.18,170.09,1.17530485]
[1747591991529,27.03163791,170.17,170.09,1.17530485]
[1747591991912,27.03163791,170.17,170.1,5.87889476]
[1747591992298,27.03163791,170.18,170.1,5.87889476]
[1747591992615,27.03163791,170.19,170.1,20.57613167]
[1747591992786,27.03163791,170.2,170.11,26.0]
[1747591992987,6.82532423,170.23,170.11,26.0]
[1747591993206,27.03163791,170.2,170.11,26.0]
[1747591993410,27.03163791,170.2,170.12,5.87820362]
[1747591995588,27.03163791,170.16,170.12,5.87820362]
[1747591995793,27.03163791,170.15,170.12,5.87820362]
[1747591996013,0.95091899,170.21,170.12,5.87820362]
[1747591996322,27.03163791,170.16,170.12,5.87820362]
[1747591996619,27.03163791,170.16,170.1,14.69723691]
[1747591996995,27.03163791,170.16,170.09,5.8792404]
[1747591997716,27.03163791,170.14,170.09,5.8792404]
[1747591997919,27.03163791,170.13,170.09,5.8792404]
[1747591998128,33.85836904,170.19,170.09,5.8792404]
[1747591998307,27.03163791,170.15,170.09,5.8792404]
[1747591998900,27.03163791,170.15,170.07,20.57961812]
[1747591999215,27.03163791,170.13,170.07,20.57961812]
[1747591999405,27.03163791,170.14,170.07,20.57961812]
[1747591999806,0.95091899,170.17,170.07,20.57961812]
[1747592000001,27.03163791,170.16,170.07,20.57961812]
[1747592001406,7.50592666,170.18,170.07,20.57961812]
[1747592001597,27.03163791,170.15,170.07,20.57961812]
[1747592001801,27.03163791,170.14,170.07,20.57961812]
[1747592002019,27.03163791,170.13,170.07,20.57961812]
[1747592002219,27.03163791,170.14,170.07,20.57961812]
[1747592002420,27.03163791,170.17,170.07,20.57961812]
[1747592002603,27.03163791,170.16,170.07,20.57961812]
[1747592003527,8.45656749,170.18,170.07,20.57961812]
[1747592003720,27.03163791,170.16,170.07,20.57961812]
[1747592005129,27.03163791,170.17,170.07,20.57961812]
[1747592005298,27.03163791,170.2,170.08,27.17547491]
[1747592005499,27.03163791,170.22,170.11,20.5749221]
[1747592005718,1.5761,170.23,170.14,26.0]
[1747592006025,12.16441073,170.26,170.15,27.17505473]
[1747592006026,6.291,170.26,170.15,27.17505473]
[1747592006215,8.39941206,170.29,170.19,26.0]
[1747592006216,1.5761,170.29,170.19,26.0]
[1747592006407,1.5761,170.29,170.2,1.17461727]
[1747592007312,6.2267,170.31,170.21,1.17455728]
[1747592007516,6.2267,170.31,170.22,5.87475032]
[1747592007714,33.25833791,170.31,170.22,5.87475032]
[1747592008034,27.03163791,170.3,170.22,5.87475032]
[1747592008200,33.25833791,170.31,170.22,20.56162612]
[1747592008401,27.03163791,170.3,170.22,20.56162612]
[1747592008632,33.25833791,170.31,170.22,20.56162612]
[1747592009026,33.25833791,170.31,170.22,5.87475032]
[1747592009233,27.03163791,170.3,170.22,5.87475032]
[1747592009404,27.03163791,170.28,170.22,5.87475032]
[1747592009599,0.95091899,170.3,170.2,5.87544065]
[1747592009826,27.03163791,170.27,170.2,5.87544065]
[1747592010846,6.2267,170.31,170.21,1.17464335]
[1747592011132,28.60773791,170.34,170.21,1.17464335]
[1747592011525,28.60773791,170.34,170.22,20.56162612]
[1747592011731,28.60773791,170.34,170.23,1.17429589]
[1747592012606,28.60773791,170.34,170.24,20.55921052]
[1747592012807,28.60773791,170.34,170.25,1.17428033]
[1747592013938,27.03163791,170.33,170.25,1.17428033]
[1747592014816,27.03163791,170.33,170.26,5.87337013]
[1747592015018,27.03163791,170.34,170.26,5.87337013]
[1747592015227,7.17761899,170.36,170.27,1.17427501]
[1747592015228,33.25833791,170.36,170.27,1.17427501]
[1747592015435,6.2267,170.36,170.27,1.17427501]
[1747592015812,27.03163791,170.38,170.27,1.17427501]
[1747592016130,28.60773791,170.39,170.27,1.17427501]
[1747592016330,0.95091899,170.43,170.31,26.0]
[1747592016636,39.12584318,170.44,170.31,27.17379801]
[1747592016821,33.25833791,170.44,170.33,20.54834731]
[1747592017148,27.03163791,170.47,170.36,26.0]
[1747592017313,27.03163791,170.47,170.37,1.17334519]
[1747592018137,27.03163791,170.46,170.37,1.17334519]
[1747592018542,27.03163791,170.44,170.34,1.17339896]
[1747592018724,27.03163791,170.42,170.34,1.17339896]
[1747592019142,27.03163791,170.42,170.35,5.87026709]
[1747592019623,0.95091899,170.45,170.35,5.87026709]
[1747592019823,27.03163791,170.43,170.35,5.87026709]
[1747592020042,27.03163791,170.42,170.35,5.87026709]
[1747592020223,27.03163791,170.43,170.35,5.87026709]
[1747592021348,27.03163791,170.44,170.36,1.17361099]
[1747592021542,5.8657907,170.48,170.36,1.17361099]
[1747592021750,40.99283227,170.41,170.35,5.87026709]
[1747592022051,26.0,170.44,170.3,1.17342882]
[1747592022224,40.99283227,170.34,170.24,71.16900229]
[1747592022425,40.99283227,170.34,170.27,26.0]
[1747592022744,40.99283227,170.35,170.28,5.87268029]
[1747592022931,6.5178,170.39,170.28,5.87268029]
[1747592023131,40.99283227,170.36,170.28,5.87268029]
[1747592023450,6.5178,170.39,170.28,5.87268029]
[1747592023631,6.5178,170.39,170.28,31.87268029]
[1747592023827,40.99283227,170.35,170.28,46.55438101]
[1747592024945,40.99283227,170.32,170.28,5.87268029]
[1747592025130,0.95091899,170.37,170.28,5.87268029]
[1747592025332,40.99283227,170.34,170.28,5.87268029]
[1747592025633,0.95091899,170.37,170.28,5.87268029]
[1747592025842,40.99283227,170.36,170.28,31.87268029]
[1747592026039,5.86923347,170.38,170.28,31.87268029]
[1747592026040,8.0867,170.39,170.31,26.0]
[1747592026224,40.99283227,170.37,170.32,5.87130108]
[1747592026424,40.99283227,170.35,170.29,5.87233542]
[1747592026623,40.99283227,170.33,170.26,5.87337013]
[1747592026838,40.99283227,170.32,170.26,5.87337013]
[1747592027559,40.99283227,170.31,170.22,22.34443036]
[1747592027722,40.99283227,170.26,170.19,5.87578588]
[1747592028125,40.99283227,170.23,170.19,5.87578588]
[1747592028347,40.99283227,170.25,170.19,5.87578588]
[1747592028849,6.4877,170.27,170.09,10.0]
[1747592028850,40.99283227,170.2,170.09,4.67463893]
[1747592029019,40.99283227,170.2,170.1,15.87199044]
[1747592029224,40.99283227,170.2,170.13,26.0]
[1747592029841,40.99283227,170.18,170.13,26.0]
[1747592030027,40.99283227,170.16,170.08,5.87958607]
[1747592030234,40.99283227,170.15,170.07,20.57971645]
[1747592030537,40.99283227,170.15,170.07,5.87993179]
[1747592030735,40.99283227,170.13,170.07,5.87993179]
[1747592031044,6.2448,170.16,170.07,5.87993179]
[1747592031230,40.99283227,170.14,170.07,5.87993179]
[1747592032049,47.23763227,170.16,170.08,1.17562834]
[1747592032221,6.2448,170.21,170.11,26.0]
[1747592032429,40.99283227,170.19,170.11,26.0]
[1747592032636,6.2448,170.21,170.11,26.0]
[1747592032852,40.99283227,170.19,170.11,26.0]
[1747592033024,40.99283227,170.18,170.08,19.8252772]
[1747592033231,40.99283227,170.15,170.08,26.0]
[1747592033434,40.99283227,170.16,170.08,26.0]
[1747592033932,40.99283227,170.16,170.09,5.8792404]
[1747592034332,5.87544065,170.2,170.09,5.8792404]
[1747592034650,40.99283227,170.17,170.09,5.8792404]
[1747592034858,40.99283227,170.16,170.09,5.8792404]
[1747592035034,40.99283227,170.15,170.09,5.8792404]
[1747592035734,40.99283227,170.14,170.09,5.8792404]
[1747592035934,40.99283227,170.14,170.07,31.87993179]
[1747592036156,0.95091899,170.17,170.07,46.57976127]
[1747592036334,40.99283227,170.15,170.07,46.57976127]
[1747592036650,40.99283227,170.16,170.07,46.57976127]
[1747592037644,40.99283227,170.14,170.07,5.87993179]
[1747592038028,40.99283227,170.15,170.06,5.88027754]
[1747592038246,40.99283227,170.16,170.06,20.58097141]
[1747592038459,41.94375126,170.16,170.06,20.58097141]
[1747592038966,40.99283227,170.15,170.06,20.58097141]
[1747592039464,40.99283227,170.15,170.06,14.70069387]
[1747592039877,40.99283227,170.12,170.05,5.88062334]
[1747592040171,40.99283227,170.11,170.05,5.88062334]
[1747592040331,40.99283227,170.09,170.02,5.88166098]
[1747592040535,40.99283227,170.06,170.0,5.88235294]
[1747592041069,40.99283227,170.05,170.0,5.88235294]
[1747592041252,47.01563227,170.1,169.92,6.2314]
[1747592041253,40.99283227,170.03,169.92,6.2314]
[1747592041567,47.01563227,170.1,169.94,14.71107449]
[1747592041568,40.99283227,170.02,169.94,14.71107449]
[1747592041867,27.16500844,170.03,169.94,14.71107449]
[1747592042468,27.16500844,170.01,169.93,5.88477608]
[1747592042659,2.52451899,170.05,169.93,20.59671629]
[1747592042860,28.11592743,170.07,169.94,27.176478]
[1747592043165,8.54731899,170.1,169.96,26.0]
[1747592043467,6.0228,170.1,169.98,26.0]
[1747592043669,1.5736,170.15,170.02,26.0]
[1747592043869,0.95091899,170.18,170.03,1.17580895]
[1747592044051,0.95091899,170.2,170.07,26.0]
[1747592044376,1.5736,170.21,170.08,1.17535538]
[1747592044558,1.5736,170.21,170.09,40.86]
[1747592044751,6.0228,170.22,170.11,18.64964886]
[1747592044954,27.16500844,170.21,170.1,1.1750813]
[1747592045267,6.0228,170.22,170.08,18.64964886]
[1747592045458,27.16500844,170.2,170.08,19.82492372]
[1747592045766,41.12895741,170.15,170.09,5.8792404]
[1747592045969,41.12895741,170.14,170.09,5.8792404]
[1747592046149,6.82673638,170.19,170.09,5.8792404]
[1747592046345,41.12895741,170.18,170.09,5.8792404]
[1747592046671,41.12895741,170.2,170.09,20.5773414]
[1747592046850,41.12895741,170.19,170.09,20.5773414]
[1747592047040,41.12895741,170.18,170.09,20.5773414]
[1747592047239,41.12895741,170.17,170.09,20.5773414]
[1747592047444,41.12895741,170.14,170.09,5.8792404]
[1747592047671,41.12895741,170.14,170.06,14.70024862]
[1747592048671,41.12895741,170.15,170.06,14.70024862]
[1747592048862,41.12895741,170.14,170.06,14.70024862]
[1747592049944,41.12895741,170.12,170.05,5.88062334]
[1747592050769,41.12895741,170.07,170.01,5.88200694]
[1747592050967,41.12895741,170.09,170.01,5.88200694]
[1747592051169,41.12895741,170.08,170.01,5.88200694]
[1747592051490,41.12895741,170.07,170.01,5.88200694]
[1747592051694,41.12895741,170.07,169.96,18.64964886]
[1747592051695,41.12895741,170.04,169.95,5.88408355]
[1747592051897,41.12895741,170.03,169.94,20.59521812]
[1747592052228,41.12895741,170.01,169.94,20.59521812]
[1747592052552,0.95091899,170.07,169.94,21.77179681]
[1747592052752,41.12895741,170.05,169.94,21.77179681]
[1747592052955,42.0798764,170.07,169.94,47.77179681]
[1747592053156,41.12895741,170.07,169.95,18.64964886]
[1747592053390,6.0228,170.1,169.98,26.0]
[1747592053593,5.87722283,170.15,169.99,19.82557069]
[1747592053759,41.12895741,170.11,169.99,19.82557069]
[1747592053961,41.12895741,170.12,170.0,49.99999999]
[1747592054386,41.12895741,170.12,170.01,1.17591069]
[1747592055592,41.12895741,170.14,170.03,26.0]
[1747592055885,42.0798764,170.15,170.03,108.83572529]
[1747592056093,42.0798764,170.15,170.04,20.58339213]
[1747592056293,41.12895741,170.15,170.04,49.98823804]
[1747592056797,41.12895741,170.14,170.04,49.98823804]
[1747592057005,41.12895741,170.14,170.04,20.58339213]
[1747592057006,41.12895741,170.13,170.04,20.58339213]
[1747592057395,42.0798764,170.14,170.04,20.58339213]
[1747592058002,41.12895741,170.09,170.0,26.0]
[1747592058212,41.12895741,170.13,170.01,19.82559995]
[1747592058364,41.12895741,170.14,170.01,19.82559995]
[1747592058568,47.15175741,170.16,170.01,19.82559995]
[1747592058791,48.1026764,170.16,170.01,19.82559995]
[1747592058993,41.12895741,170.15,170.01,19.82559995]
[1747592059568,6.0228,170.16,170.04,26.0]
[1747592059772,41.12895741,170.15,170.05,1.17557016]
[1747592060097,47.15175741,170.16,170.06,20.58097141]
[1747592061090,41.12895741,170.19,170.07,27.17555683]
[1747592061297,41.12895741,170.2,170.08,18.64964886]
[1747592061487,47.62785741,170.21,170.09,1.17524886]
[1747592061677,6.4989,170.21,170.1,67.08]
[1747592061867,41.12895741,170.22,170.11,1.17511413]
[1747592062201,41.12895741,170.21,170.12,5.87820362]
[1747592062489,0.95091899,170.21,170.09,5.8792404]
[1747592062687,41.12895741,170.17,170.09,5.8792404]
[1747592062896,41.12895741,170.14,170.07,5.87993179]
[1747592063276,41.12895741,170.15,170.07,5.87993179]
[1747592064095,47.00623962,170.15,170.07,5.87993179]
[1747592064775,41.12895741,170.15,170.07,5.87993179]
[1747592065691,0.95091899,170.23,170.08,1.17562066]
[1747592065898,41.12895741,170.21,170.08,19.82526952]
[1747592066305,41.12895741,170.21,170.09,20.5773414]
[1747592066501,47.00429519,170.21,170.09,20.5773414]
[1747592067277,41.12895741,170.21,170.1,1.1752948]
[1747592067478,0.95091899,170.26,170.14,26.0]
[1747592067798,40.32,170.3,170.19,26.0]
[1747592067799,41.12895741,170.3,170.19,26.0]
[1747592067989,6.4234,170.33,170.2,1.17468843]
[1747592068309,41.12895741,170.35,170.22,46.56162612]
[1747592068491,41.12895741,170.36,170.25,26.0]
[1747592068677,1.6544,170.37,170.26,1.1741765]
[1747592068879,41.12895741,170.38,170.26,1.1741765]
[1747592069182,41.12895741,170.36,170.26,1.1741765]
[1747592069512,41.12895741,170.37,170.26,1.1741765]
[1747592070084,46.99875164,170.37,170.27,5.87302519]
[1747592070705,5.86979423,170.37,170.25,5.8733818]
[1747592070890,41.12895741,170.31,170.25,5.8733818]
[1747592071302,0.95091899,170.36,170.25,5.8733818]
[1747592071507,41.12895741,170.32,170.25,5.8733818]
[1747592071897,41.12895741,170.31,170.25,5.8733818]
[1747592072208,41.12895741,170.31,170.22,121.16652079]
[1747592072209,41.12895741,170.31,170.23,5.87440521]
[1747592072521,40.62895741,170.31,170.23,5.87440521]
[1747592072682,41.12895741,170.28,170.21,225.79488771]
[1747592072889,41.12895741,170.27,170.21,225.79488771]
[1747592073695,41.12895741,170.25,170.21,219.92]
[1747592073896,41.12895741,170.24,170.16,5.87682181]
[1747592074111,0.95091899,170.3,170.16,20.56887634]
[1747592074302,41.12895741,170.28,170.17,1.17491604]
[1747592074508,41.12895741,170.29,170.19,26.0]
[1747592075092,41.12895741,170.28,170.17,27.17491604]
[1747592075312,41.12895741,170.27,170.17,27.17474963]
[1747592075689,41.12895741,170.28,170.17,27.17474963]
[1747592076315,41.12895741,170.28,170.18,46.56645903]
[1747592076483,5.87220248,170.3,170.18,46.56645903]
[1747592076484,41.12895741,170.27,170.18,46.56645903]
[1747592076807,41.12895741,170.27,170.18,31.87613115]
[1747592076993,41.12895741,170.25,170.18,31.87613115]
[1747592077391,41.12895741,170.26,170.18,31.87613115]
[1747592077794,41.12895741,170.25,170.18,31.87613115]
[1747592078101,6.5616,170.28,170.18,31.87613115]
[1747592078102,41.12895741,170.26,170.18,31.87613115]
[1747592078296,6.5616,170.28,170.18,46.56645903]
[1747592078504,41.12895741,170.26,170.18,46.56645903]
[1747592078712,41.12895741,170.24,170.18,31.87613115]
[1747592078902,41.12895741,170.23,170.18,31.87613115]
[1747592079117,41.12895741,170.22,170.16,5.87682181]
[1747592079814,41.12895741,170.19,170.14,5.87723846]
[1747592080119,41.12895741,170.19,170.14,26.0]
[1747592080998,41.12895741,170.2,170.14,26.0]
[1747592082109,0.95091899,170.22,170.14,31.87717416]
[1747592082309,0.95091899,170.24,170.14,46.57095575]
[1747592082508,41.12895741,170.24,170.14,46.57095575]
[1747592082706,41.12895741,170.25,170.15,1.17503099]
[1747592083113,41.12895741,170.27,170.19,26.0]
[1747592083437,41.12895741,170.3,170.2,1.17483407]
[1747592083743,41.12895741,170.31,170.2,1.17483407]
[1747592084112,41.12895741,170.28,170.2,5.87544065]
[1747592084627,41.12895741,170.28,170.2,20.56404229]
[1747592085107,41.12895741,170.25,170.2,5.87544065]
[1747592085643,41.12895741,170.27,170.2,5.87544065]
[1747592085851,41.12895741,170.26,170.2,5.87544065]
[1747592086138,0.95091899,170.29,170.2,5.87544065]
[1747592086300,41.12895741,170.28,170.2,5.87544065]
[1747592086721,41.12895741,170.26,170.2,5.87544065]
[1747592086910,41.12895741,170.25,170.2,5.87544065]
[1747592087310,41.12895741,170.25,170.19,46.1757259]
[1747592087610,41.12895741,170.23,170.19,40.3]
[1747592087923,41.12895741,170.25,170.18,5.87607849]
[1747592088099,0.91091899,170.27,170.18,26.0]
[1747592088305,41.12895741,170.25,170.18,26.0]
[1747592088509,0.91091899,170.3,170.2,26.0]
[1747592088824,41.12895741,170.3,170.2,26.0]
[1747592089626,0.91091899,170.31,170.21,31.87509547]
[1747592089922,41.12895741,170.37,170.25,26.0]
[1747592090223,8.3006,170.38,170.26,1.17414709]
[1747592090224,41.12895741,170.36,170.26,1.17414709]
[1747592090524,41.12895741,170.34,170.25,26.0]
[1747592090716,41.12895741,170.31,170.24,79.94]
[1747592091425,41.12895741,170.3,170.24,26.0]
[1747592091614,41.12895741,170.3,170.25,5.87371512]
[1747592091920,41.12895741,170.29,170.21,40.68773867]
[1747592092426,41.12895741,170.26,170.21,31.87502347]
[1747592092929,41.12895741,170.26,170.21,5.87502347]
[1747592093321,41.12895741,170.24,170.19,5.87549576]
[1747592093504,41.12895741,170.25,170.19,5.87549576]
[1747592093929,41.12895741,170.24,170.19,5.87549576]
[1747592095720,41.12895741,170.23,170.16,20.56887634]
[1747592095923,41.12895741,170.23,170.16,46.56887634]
[1747592096112,41.12895741,170.24,170.16,46.56887634]
[1747592096444,6.6524,170.27,170.16,47.74386166]
[1747592096647,6.6524,170.27,170.19,26.0]
[1747592096946,41.12895741,170.3,170.19,27.17464977]
[1747592097111,41.12895741,170.29,170.19,27.17464977]
[1747592098028,0.93091899,170.31,170.2,20.56404229]
[1747592098210,6.1469,170.32,170.23,26.0]